bitfinex-derivatives/quotes_BNBF0:USTF0_20250115
["timestamp","ask_amount","ask_price","bid_price","bid_amount"]
[1736903074320,0.26244084,700.71,700.11,1.249]
[1736903074524,0.26244084,700.7,700.11,1.249]
[1736903074721,0.26244084,700.69,700.11,1.249]
[1736903074931,0.26244084,700.68,700.11,1.249]
[1736903075119,0.26244084,700.67,700.11,1.249]
[1736903075325,0.26244084,700.66,700.11,1.249]
[1736903075527,0.26244084,700.65,700.11,1.249]
[1736903075826,0.26244084,700.64,700.11,1.249]
[1736903076026,0.26244084,700.63,700.11,1.249]
[1736903076326,0.26251713,700.62,700.11,1.249]
[1736903076522,0.26251713,700.61,700.11,1.249]
[1736903076724,0.26251713,700.6,700.11,1.249]
[1736903076920,0.26251713,700.59,700.11,1.249]
[1736903077126,1.06328674,700.7,700.11,1.249]
[1736903077327,0.54794293,700.69,700.11,1.249]
[1736903077523,0.285437,700.68,700.11,1.249]
[1736903077728,0.26256362,700.67,700.11,1.249]
[1736903077926,0.28544515,700.66,700.11,1.249]
[1736903078228,0.26256362,700.65,700.11,1.249]
[1736903078426,0.28545329,700.64,700.11,1.249]
[1736903078626,0.26256362,700.63,700.11,1.249]
[1736903078928,0.28546144,700.62,700.11,1.249]
[1736903079127,0.26257755,700.61,700.11,1.249]
[1736903079521,0.28546959,700.6,700.11,1.249]
[1736903081124,0.26257483,700.59,700.11,1.249]
[1736903081323,0.28547774,700.58,700.11,1.249]
[1736903082124,0.26258149,700.57,700.11,1.249]
[1736903083429,0.28548589,700.56,700.11,1.249]
[1736903083627,0.26258149,700.55,700.11,1.249]
[1736903084621,0.26260221,700.54,700.11,1.249]
[1736903084825,0.26260221,700.53,700.11,1.249]
[1736903085026,0.26260221,700.52,700.11,1.249]
[1736903085224,0.26260221,700.51,700.11,1.249]
[1736903085426,0.26260221,700.5,700.11,1.249]
[1736903085627,0.26260221,700.49,700.11,1.249]
[1736903085830,0.26260221,700.48,700.11,1.249]
[1736903086026,0.54812478,700.47,700.11,1.249]
[1736903086227,0.54812886,700.46,700.11,1.249]
[1736903086427,0.54813294,700.45,700.11,1.249]
[1736903086628,0.26260221,700.44,700.11,1.249]
[1736903087330,0.28553888,700.43,700.11,1.249]
[1736903087526,0.26260471,700.42,700.11,1.249]
[1736903087727,0.28554703,700.41,700.11,1.249]
[1736903087929,0.26260471,700.4,700.11,1.249]
[1736903090231,0.28554703,700.41,700.11,1.249]
[1736903090431,0.26260354,700.4,700.11,1.249]
[1736903091229,0.26260555,700.39,700.11,1.249]
[1736903091430,0.26260555,700.38,700.11,1.249]
[1736903091730,0.26260555,700.37,700.11,1.249]
[1736903091930,0.26260555,700.36,700.11,1.249]
[1736903092128,0.26260555,700.35,700.11,1.249]
[1736903092329,0.26260555,700.34,700.11,1.249]
[1736903092523,0.28554703,700.41,700.11,1.249]
[1736903092728,0.26259757,700.4,700.11,1.249]
[1736903095331,0.28554703,700.41,700.11,1.249]
[1736903106340,0.26256982,700.4,700.11,1.249]
[1736903108637,0.28554703,700.41,700.11,1.249]
[1736903108943,0.26256804,700.4,700.11,1.249]
[1736903109839,1.32585478,700.4,700.11,1.249]
[1736903110045,0.26256804,700.39,700.11,1.249]
[1736903110341,1.06328674,700.4,700.11,1.249]
[1736903110540,0.28554703,700.41,700.11,1.249]
[1736903110943,0.26255615,700.4,700.11,1.249]
[1736903111140,0.28554703,700.41,700.11,1.249]
[1736903111542,1.35412613,700.41,700.11,1.249]
[1736903112440,0.28554703,700.41,700.11,1.249]
[1736903113745,1.35412613,700.41,700.11,1.249]
[1736903114742,1.0685791,700.4,700.11,1.249]
[1736903115647,0.28554703,700.41,700.11,1.249]
[1736903130666,1.06662456,700.66,700.11,1.249]
[1736903130859,0.26248398,700.65,700.11,1.249]
[1736903131058,1.06662456,700.72,700.11,1.249]
[1736903131259,0.26248135,700.71,700.11,1.249]
[1736903132163,0.26248135,700.7,700.11,1.249]
[1736903132358,0.26248135,700.69,700.11,1.249]
[1736903132562,0.26247506,700.68,700.11,1.249]
[1736903132759,0.26247506,700.67,700.11,1.249]
[1736903132959,0.26247506,700.66,700.11,1.249]
[1736903133163,1.06662456,700.78,700.11,1.249]
[1736903133360,0.26247824,700.77,700.11,1.249]
[1736903133765,1.06662456,700.76,700.11,1.249]
[1736903133961,0.26247824,700.75,700.11,1.249]
[1736903134367,0.26247824,700.74,700.11,1.249]
[1736903134567,0.26247824,700.73,700.11,1.249]
[1736903134767,0.26247824,700.72,700.11,1.249]
[1736903134967,0.26247824,700.71,700.11,1.249]
[1736903135168,0.26247824,700.7,700.11,1.249]
[1736903135366,0.26247824,700.69,700.11,1.249]
[1736903135566,0.26247824,700.68,700.11,1.249]
[1736903135770,1.06677928,700.76,700.11,1.249]
[1736903136162,0.26247128,700.75,700.11,1.249]
[1736903136763,1.06677928,700.76,700.11,1.249]
[1736903137269,0.2624596,700.75,700.11,1.249]
[1736903138367,0.2624596,700.74,700.11,1.249]
[1736903138567,0.2624596,700.73,700.11,1.249]
[1736903138867,0.26245795,700.72,700.11,1.249]
[1736903139067,1.06677928,700.82,700.11,1.249]
[1736903139268,0.26245777,700.81,700.11,1.249]
[1736903141466,1.06677928,700.81,700.11,1.249]
[1736903141668,0.26245752,700.8,700.11,1.249]
[1736903142074,1.3292368,700.8,700.11,1.249]
[1736903142273,0.26245752,700.79,700.11,1.249]
[1736903143473,1.06677928,700.77,700.11,1.249]
[1736903143673,0.26245752,700.76,700.11,1.249]
[1736903144275,1.06677928,700.77,700.11,1.249]
[1736903144276,0.2624626,700.75,700.11,1.249]
[1736903144573,0.2624626,700.74,700.11,1.249]
[1736903144774,1.06677928,700.76,700.11,1.249]
[1736903146782,1.06677928,701.28,700.11,1.249]
[1736903146977,0.28520092,701.26,700.11,1.249]
[1736903147270,0.2624613,701.25,700.11,1.249]
[1736903147477,0.28521312,701.23,700.11,1.249]
[1736903147676,0.2624613,701.22,700.11,1.249]
[1736903147875,1.06677928,701.15,700.11,1.249]
[1736903148070,0.2852538,701.13,700.11,1.249]
[1736903148674,1.06677928,701.11,700.11,1.249]
[1736903148875,0.28527007,701.09,700.11,1.249]
[1736903150877,1.06677928,701.08,700.11,1.249]
[1736903151076,0.28528228,701.06,700.11,1.249]
[1736903153275,1.35206156,701.06,700.11,1.249]
[1736903155075,0.26244131,701.05,700.11,1.249]
[1736903155280,0.28529449,701.03,700.11,1.249]
[1736903155680,0.26243814,701.02,700.11,1.249]
[1736903155982,1.06677928,700.71,700.11,1.249]
[1736903156281,0.26243977,700.7,700.11,1.249]
[1736903157780,1.06677928,700.67,700.11,1.249]
[1736903157983,0.26243977,700.66,700.11,1.249]
[1736903158280,0.26244484,700.65,700.11,1.249]
[1736903158475,1.06677928,700.67,700.11,1.249]
[1736903158876,1.06677928,700.66,700.11,1.249]
[1736903159777,1.06677928,700.68,700.11,1.249]
[1736903159978,0.26243885,700.67,700.11,1.249]
[1736903160783,0.26244296,700.66,700.11,1.249]
[1736903160983,0.26244672,700.65,700.11,1.249]
[1736903161179,0.26244672,700.64,700.11,1.249]
[1736903161384,1.06677928,700.67,700.11,1.249]
[1736903161684,0.26243983,700.66,700.11,1.249]
[1736903161885,1.06677928,700.65,700.11,1.249]
[1736903162684,1.06677928,700.66,700.11,1.249]
[1736903163287,0.26244783,700.65,700.11,1.249]
[1736903163486,1.06677928,700.64,700.11,1.249]
[1736903163685,0.26244783,700.63,700.11,1.249]
[1736903164788,1.06677928,700.6,700.11,1.249]
[1736903166087,1.06677928,700.56,700.11,1.249]
[1736903166988,1.06677928,700.6,700.11,1.249]
[1736903168289,1.06677928,700.81,700.11,1.249]
[1736903168290,1.06677928,700.58,700.11,1.249]
[1736903169388,1.06677928,700.57,700.11,1.249]
[1736903173592,1.06677928,700.58,700.11,1.249]
[1736903174792,1.06677928,700.59,700.11,1.249]
[1736903176695,1.06677928,700.58,700.11,1.249]
[1736903177694,1.06677928,700.57,700.11,1.249]
[1736903178796,1.06677928,700.73,700.11,1.249]
[1736903180092,1.06677928,700.75,700.11,1.249]
[1736903182496,1.32920534,700.74,700.11,1.249]
[1736903182695,0.26242822,700.73,700.11,1.249]
[1736903183295,1.06677928,700.71,700.11,1.249]
[1736903183493,0.26242822,700.7,700.11,1.249]
[1736903184397,1.06677928,700.67,700.11,1.249]
[1736903185398,1.06677928,700.96,700.11,1.249]
[1736903185399,1.06677928,700.68,700.11,1.249]
[1736903186297,1.06677928,700.67,700.11,1.249]
[1736903187094,1.06677928,700.69,700.11,1.249]
[1736903188497,1.06677928,700.7,700.11,1.249]
[1736903189499,1.06677928,700.69,700.11,1.249]
[1736903190401,0.81906371,700.96,700.11,1.249]
[1736903190402,1.06677928,700.68,700.11,1.249]
[1736903192301,0.26246083,700.67,700.11,1.249]
[1736903192902,1.32924011,700.67,700.11,1.249]
[1736903193101,0.26246083,700.66,700.11,1.249]
[1736903194103,1.06677928,700.63,700.11,1.249]
[1736903198003,0.81899298,700.96,700.11,1.249]
[1736903198202,0.262459,700.95,700.11,1.249]
[1736903198596,1.06566741,700.62,700.11,1.249]
[1736903199603,0.262459,700.61,700.11,1.249]
[1736903199908,1.06566741,700.6,700.11,1.249]
[1736903202406,1.06566741,700.64,700.11,1.249]
[1736903202606,0.26246651,700.63,700.11,1.249]
[1736903203308,1.06566741,700.64,700.11,1.249]
[1736903203607,1.06566741,700.59,700.11,1.249]
[1736903204005,1.06566741,700.8,700.11,1.249]
[1736903204006,1.06566741,700.62,700.11,1.249]
[1736903207711,1.06566741,700.63,700.11,1.249]
[1736903209712,1.06566741,700.62,700.11,1.249]
[1736903210713,1.06566741,700.63,700.11,1.249]
[1736903210914,0.26246472,700.62,700.11,1.249]
[1736903211614,1.06566741,700.58,700.11,1.249]
[1736903213809,1.06566741,700.59,700.11,1.249]
[1736903214920,1.06566741,700.64,700.11,1.249]
[1736903215808,1.06566741,700.77,700.11,1.249]
[1736903217017,1.06566741,700.8,700.11,1.249]
[1736903217815,1.06566741,700.79,700.11,1.249]
[1736903218815,1.06566741,700.78,700.11,1.249]
[1736903220923,2.17573764,701.43,700.11,1.249]
[1736903220924,1.06566741,701.14,700.11,1.249]
[1736903222221,1.06566741,701.23,700.11,1.249]
[1736903223220,2.17573764,702.35,700.11,1.249]
[1736903223221,1.06566741,701.32,700.11,1.249]
[1736903224525,1.06566741,701.36,700.11,1.249]
[1736903225926,1.06566741,701.5,700.11,1.249]
[1736903226926,2.17573764,702.77,700.11,1.249]
[1736903226927,1.06566741,701.43,700.11,1.249]
[1736903227928,1.06566741,701.42,700.11,1.249]
[1736903228722,1.06566741,702.01,700.11,1.249]
[1736903228723,1.06566741,701.43,700.11,1.249]
[1736903229728,1.06566741,701.51,700.11,1.249]
[1736903230632,1.06566741,701.49,700.11,1.249]
[1736903233430,1.06566741,701.45,700.11,1.249]
[1736903235640,1.06566741,701.57,700.11,1.249]
[1736903236736,2.17573764,702.89,700.11,1.249]
[1736903236737,1.06566741,701.58,700.11,1.249]
[1736903239632,1.06566741,701.51,700.11,1.249]
[1736903240939,1.06566741,701.58,700.11,1.249]
[1736903242439,1.06566741,701.4,700.11,1.249]
[1736903243640,1.06566741,701.41,700.11,1.249]
[1736903244541,1.06566741,701.5,700.11,1.249]
[1736903245543,1.06566741,701.48,700.11,1.249]
[1736903246641,1.06566741,701.8,700.11,1.249]
[1736903246642,1.06566741,701.49,700.11,1.249]
[1736903247542,1.06566741,701.48,700.11,1.249]
[1736903249543,1.06566741,701.44,700.11,1.249]
[1736903250543,1.06566741,701.42,700.11,1.249]
[1736903252045,1.06566741,701.4,700.11,1.249]
[1736903252750,1.06566741,701.39,700.11,1.249]
[1736903254744,2.17573764,702.29,700.11,1.249]
[1736903254745,1.06566741,701.23,700.11,1.249]
[1736903256253,1.06566741,701.24,700.11,1.249]
[1736903257252,1.06566741,701.25,700.11,1.249]
[1736903258355,1.2788009,701.82,700.11,1.249]
[1736903258356,1.06566741,701.24,700.11,1.249]
[1736903260456,1.06566741,701.27,700.11,1.249]
[1736903261154,1.06566741,701.28,700.11,1.249]
[1736903262360,2.17573764,701.99,700.11,1.249]
[1736903262361,1.06566741,701.26,700.11,1.249]
[1736903263861,1.06566741,701.23,700.11,1.249]
[1736903264963,1.06566741,701.22,700.11,1.249]
[1736903265763,1.06566741,701.26,700.11,1.249]
[1736903266964,1.06566741,701.18,700.11,1.249]
[1736903268266,1.06566741,701.13,700.11,1.249]
[1736903270365,1.06566741,701.48,700.11,1.249]
[1736903271265,1.06566741,701.47,700.11,1.249]
[1736903271763,0.2851196,701.46,700.11,1.249]
[1736903272163,1.06566741,701.44,700.11,1.249]
[1736903272367,0.2851318,701.43,700.11,1.249]
[1736903273560,1.35079921,701.43,700.11,1.249]
[1736903274668,1.06566741,701.4,700.11,1.249]
[1736903274867,0.28514806,701.39,700.11,1.249]
[1736903275565,1.35081547,701.39,700.11,1.249]
[1736903276172,0.26225448,701.38,700.11,1.249]
[1736903276465,0.28515619,701.37,700.11,1.249]
[1736903276664,0.26225448,701.36,700.11,1.249]
[1736903277263,1.06566741,701.17,700.11,1.249]
[1736903279569,0.26225694,701.16,700.11,1.249]
[1736903280468,1.06566741,701.17,700.11,1.249]
[1736903280973,1.06566741,701.15,700.11,1.249]
[1736903282070,0.28515619,701.37,700.11,1.249]
[1736903282071,1.06566741,701.2,700.11,1.249]
[1736903282373,0.26225617,701.19,700.11,1.249]
[1736903282773,1.06566741,701.2,700.11,1.249]
[1736903282974,0.26225386,701.19,700.11,1.249]
[1736903283778,1.06566741,701.18,700.11,1.249]
[1736903283976,0.26225386,701.17,700.11,1.249]
[1736903287273,1.06566741,701.18,700.11,1.249]
[1736903287479,1.06566741,701.17,700.11,1.249]
[1736903288477,1.3508236,701.37,700.11,1.249]
[1736903288478,1.06566741,701.14,700.11,1.249]
[1736903288974,0.26226904,701.13,700.11,1.249]
[1736903289680,0.26226904,701.14,700.11,1.249]
[1736903289879,0.26226904,701.13,700.11,1.249]
[1736903290079,0.26226904,701.12,700.11,1.249]
[1736903290282,0.26226904,701.11,700.11,1.249]
[1736903290480,0.26226904,701.1,700.11,1.249]
[1736903290675,0.26226904,701.09,700.11,1.249]
[1736903290881,0.26226904,701.08,700.11,1.249]
[1736903291079,0.26226904,701.07,700.11,1.249]
[1736903291278,1.06566741,701.1,700.11,1.249]
[1736903291479,0.26228947,701.09,700.11,1.249]
[1736903291977,1.06566741,701.1,700.11,1.249]
[1736903292176,0.262284,701.09,700.11,1.249]
[1736903293082,1.32795141,701.09,700.11,1.249]
[1736903293282,1.06566741,701.09,700.11,1.249]
[1736903293880,1.06566741,701.1,700.11,1.249]
[1736903294078,0.26228961,701.09,700.11,1.249]
[1736903294383,0.2622901,701.08,700.11,1.249]
[1736903294681,1.06566741,701.1,700.11,1.249]
[1736903294883,0.2622914,701.09,700.11,1.249]
[1736903296985,0.26229138,701.08,700.11,1.249]
[1736903297281,1.06566741,701.1,700.11,1.249]
[1736903297480,0.26229157,701.09,700.11,1.249]
[1736903297985,1.06566741,701.1,700.11,1.249]
[1736903298484,0.26228551,701.09,700.11,1.249]
[1736903299185,1.06566741,701.11,700.11,1.249]
[1736903300081,1.06566741,701.14,700.11,1.249]
[1736903300283,0.26228845,701.13,700.11,1.249]
[1736903300481,1.06566741,701.14,700.11,1.249]
[1736903300687,0.26228653,701.13,700.11,1.249]
[1736903301484,1.06566741,701.14,700.11,1.249]
[1736903302288,1.06566741,701.13,700.11,1.249]
[1736903303283,1.06566741,701.14,700.11,1.249]
[1736903304388,1.06566741,701.12,700.11,1.249]
[1736903305592,0.28515619,701.37,700.11,1.249]
[1736903305593,1.06566741,701.18,700.11,1.249]
[1736903306493,1.06566741,701.2,700.11,1.249]
[1736903308693,1.06566741,701.19,700.11,1.249]
[1736903309695,1.06566741,701.17,700.11,1.249]
[1736903311693,1.61328119,701.16,700.11,1.249]
[1736903311890,0.28524973,701.14,700.11,1.249]
[1736903312090,0.26237219,701.13,700.11,1.249]
[1736903312294,0.28526194,701.11,700.11,1.249]
[1736903312498,0.26237219,701.1,700.11,1.249]
[1736903312892,0.28527414,701.08,700.11,1.249]
[1736903313096,1.06566741,700.94,700.11,1.249]
[1736903313292,0.28533519,700.93,700.11,1.249]
[1736903314491,0.26242351,700.92,700.11,1.249]
[1736903314695,0.28534333,700.91,700.11,1.249]
[1736903314891,0.26242351,700.9,700.11,1.249]
[1736903315093,0.28535148,700.89,700.11,1.249]
[1736903315899,0.26242498,700.88,700.11,1.249]
[1736903316096,0.28535962,700.87,700.11,1.249]
[1736903320700,0.26243084,700.86,700.11,1.249]
[1736903322194,0.28535962,700.87,700.11,1.249]
[1736903322195,0.26244052,700.85,700.11,1.249]
[1736903322395,0.26244052,700.84,700.11,1.249]
[1736903322598,0.26244052,700.83,700.11,1.249]
[1736903322799,0.26244052,700.82,700.11,1.249]
[1736903322995,0.26244052,700.81,700.11,1.249]
[1736903323301,0.26244052,700.8,700.11,1.249]
[1736903323499,0.26244052,700.79,700.11,1.249]
[1736903323699,0.26244052,700.78,700.11,1.249]
[1736903323900,0.26244052,700.77,700.11,1.249]
[1736903324094,0.26244052,700.76,700.11,1.249]
[1736903324293,0.26244052,700.75,700.11,1.249]
[1736903324495,0.28535962,700.87,700.11,1.249]
[1736903324694,0.26243772,700.86,700.11,1.249]
[1736903325001,0.26241991,700.85,700.11,1.249]
[1736903325196,0.26241991,700.84,700.11,1.249]
[1736903325403,0.26241991,700.83,700.11,1.249]
[1736903325701,0.28535962,700.87,700.11,1.249]
[1736903325895,0.26243376,700.86,700.11,1.249]
[1736903327696,0.28535962,700.87,700.11,1.249]
[1736903327897,0.26242303,700.86,700.11,1.249]
[1736903332805,0.28535962,700.87,700.11,1.249]
[1736903351523,1.06566741,701.36,700.11,1.249]
[1736903351723,0.28516432,701.35,700.11,1.249]
[1736903357825,0.26232131,701.34,700.11,1.249]
[1736903358126,0.54749376,701.33,700.11,1.249]
[1736903358331,0.54749783,701.32,700.11,1.249]
[1736903358631,0.5475019,701.31,700.11,1.249]
[1736903358826,0.54750596,701.3,700.11,1.249]
[1736903359026,1.06566741,701.27,700.11,1.249]
[1736903359228,0.54752223,701.26,700.11,1.249]
[1736903359430,0.26232131,701.25,700.11,1.249]
[1736903359728,0.5475263,701.25,700.11,1.249]
[1736903359928,0.26232131,701.24,700.11,1.249]
[1736903360125,0.54753453,701.23,700.11,1.249]
[1736903360329,0.5475386,701.22,700.11,1.249]
[1736903360632,0.28522126,701.21,700.11,1.249]
[1736903361730,0.26234386,701.2,700.11,1.249]
[1736903361926,0.28522939,701.19,700.11,1.249]
[1736903362131,0.26234386,701.18,700.11,1.249]
[1736903362327,1.06566741,701.13,700.11,1.249]
[1736903362531,0.54760173,701.12,700.11,1.249]
[1736903362734,0.26234386,701.11,700.11,1.249]
[1736903362927,0.26235046,701.1,700.11,1.249]
[1736903363233,0.26235046,701.09,700.11,1.249]
[1736903363427,0.26235046,701.08,700.11,1.249]
[1736903363631,0.26235046,701.07,700.11,1.249]
[1736903363833,0.26235046,701.06,700.11,1.249]
[1736903364028,0.26235046,701.05,700.11,1.249]
[1736903364227,0.26235046,701.04,700.11,1.249]
[1736903364429,1.06566741,701.09,700.11,1.249]
[1736903364629,0.26235153,701.08,700.11,1.249]
[1736903365430,1.06566741,701.07,700.11,1.249]
[1736903365635,0.26235153,701.06,700.11,1.249]
[1736903365936,1.06566741,701.07,700.11,1.249]
[1736903366137,0.26233667,701.06,700.11,1.249]
[1736903366637,1.06566741,701.09,700.11,1.249]
[1736903366830,0.26233416,701.08,700.11,1.249]
[1736903367234,1.32800157,701.08,700.11,1.249]
[1736903367436,0.26233416,701.07,700.11,1.249]
[1736903368534,0.26231536,701.06,700.11,1.249]
[1736903368835,1.06566741,701.06,700.11,1.249]
[1736903370039,1.06566741,701.07,700.11,1.249]
[1736903371039,1.06566741,701.08,700.11,1.249]
[1736903372444,0.28525787,701.12,700.11,1.249]
[1736903379050,0.26232411,701.11,700.11,1.249]
[1736903379449,0.28525787,701.12,700.11,1.249]
[1736903379646,1.06566741,701.08,700.11,1.249]
[1736903379845,0.26232841,701.07,700.11,1.249]
[1736903380650,1.06566741,701.03,700.11,1.249]
[1736903381646,1.06566741,701.02,700.11,1.249]
[1736903382849,1.06566741,701.01,700.11,1.249]
[1736903384657,1.06566741,701.0,700.11,1.249]
[1736903387056,0.28525787,701.12,700.11,1.249]
[1736903387057,1.06566741,701.04,700.11,1.249]
[1736903388252,1.06566741,701.07,700.11,1.249]
[1736903389559,1.06566741,701.08,700.11,1.249]
[1736903390455,1.35092528,701.12,700.11,1.249]
[1736903391455,0.28525787,701.12,700.11,1.249]
[1736903401063,1.06566741,701.09,700.11,1.249]
[1736903402068,1.06566741,701.1,700.11,1.249]
[1736903402868,0.26232378,701.09,700.11,1.249]
[1736903403272,1.06566741,700.99,700.11,1.249]
[1736903404471,1.06566741,700.98,700.11,1.249]
[1736903405471,0.28525787,701.12,700.11,1.249]
[1736903405472,1.06566741,701.02,700.11,1.249]
[1736903406572,0.28525787,701.12,700.11,1.249]
[1736903406573,1.06566741,701.06,700.11,1.249]
[1736903407375,0.28525787,701.12,700.11,1.249]
[1736903416480,1.06566741,701.3,700.11,1.249]
[1736903416781,1.06566741,701.59,700.11,1.249]
[1736903416980,0.28507084,701.58,700.11,1.249]
[1736903418683,0.26220304,701.57,700.11,1.249]
[1736903419383,0.28507084,701.58,700.11,1.249]
[1736903420483,0.26220621,701.57,700.11,1.249]
[1736903420684,0.28507896,701.56,700.11,1.249]
[1736903424687,0.26219846,701.55,700.11,1.249]
[1736903424879,0.28508709,701.54,700.11,1.249]
[1736903425083,0.26219846,701.53,700.11,1.249]
[1736903426287,0.28509522,701.52,700.11,1.249]
[1736903426483,0.26219846,701.51,700.11,1.249]
[1736903427583,0.26219059,701.5,700.11,1.249]
[1736903427785,0.26219059,701.49,700.11,1.249]
[1736903427980,0.26219059,701.48,700.11,1.249]
[1736903428186,0.28509522,701.52,700.11,1.249]
[1736903428187,0.26219059,701.47,700.11,1.249]
[1736903428382,0.26219059,701.46,700.11,1.249]
[1736903428588,0.26219059,701.51,700.11,1.249]
[1736903428789,0.26218809,701.5,700.11,1.249]
[1736903428988,0.26218809,701.49,700.11,1.249]
[1736903429189,0.26218809,701.51,700.11,1.249]
[1736903429392,0.26218809,701.5,700.11,1.249]
[1736903429589,0.28509522,701.52,700.11,1.249]
[1736903429590,0.26218809,701.51,700.11,1.249]
[1736903429790,0.26218809,701.49,700.11,1.249]
[1736903429990,0.26218809,701.48,700.11,1.249]
[1736903430183,0.28509522,701.52,700.11,1.249]
[1736903430892,0.28509522,701.52,700.12,0.28566531]
[1736903432291,0.28509522,701.52,700.12,1.44166531]
[1736903447002,0.26217442,701.51,700.12,1.44166531]
[1736903447197,0.28509522,701.52,700.12,1.44166531]
[1736903447398,0.26217709,701.51,700.12,1.44166531]
[1736903448102,0.28509522,701.52,700.12,1.44166531]
[1736903448307,0.26219034,701.51,700.12,1.44166531]
[1736903449200,0.28509522,701.52,700.12,1.44166531]
[1736903449201,1.061066,701.48,700.12,1.44166531]
[1736903449407,0.26219286,701.47,700.12,1.44166531]
[1736903450108,1.061066,701.45,700.12,1.44166531]
[1736903450303,0.26219286,701.44,700.12,1.44166531]
[1736903451199,0.28509522,701.52,700.12,1.44166531]
[1736903451200,1.061066,701.38,700.12,1.44166531]
[1736903452706,1.061066,701.39,700.12,1.44166531]
[1736903457007,0.26220659,701.38,700.12,1.44166531]
[1736903457408,1.061066,701.39,700.12,1.44166531]
[1736903457706,1.061066,701.36,700.12,1.44166531]
[1736903457905,0.26220576,701.35,700.12,1.44166531]
[1736903458705,1.061066,701.36,700.12,1.44166531]
[1736903459804,0.26219566,701.35,700.12,1.44166531]
[1736903460208,0.26219566,701.34,700.12,1.44166531]
[1736903460403,1.061066,701.38,700.12,1.44166531]
[1736903461013,0.28509522,701.52,700.12,1.44166531]
[1736903466615,1.061066,701.49,700.12,1.44166531]
[1736903466808,0.28511147,701.48,700.12,1.44166531]
[1736903470310,0.26223216,701.47,700.12,1.44166531]
[1736903470614,0.8095874,701.46,700.12,1.44166531]
[1736903470814,1.061066,701.38,700.12,1.44166531]
[1736903471117,0.26223365,701.37,700.12,1.44166531]
[1736903471317,1.061066,701.38,700.12,1.44166531]
[1736903471615,0.26222925,701.37,700.12,1.44166531]
[1736903472612,1.061066,701.4,700.12,1.44166531]
[1736903472917,0.26222934,701.39,700.12,1.44166531]
[1736903474216,1.061066,701.33,700.12,1.44166531]
[1736903474816,0.26223051,701.32,700.12,1.44166531]
[1736903475415,1.061066,701.35,700.12,1.44166531]
[1736903475612,0.2622325,701.34,700.12,1.44166531]
[1736903476120,1.061066,701.31,700.12,1.44166531]
[1736903477421,1.061066,701.33,700.12,1.44166531]
[1736903477617,0.26224055,701.32,700.12,1.44166531]
[1736903478417,1.061066,701.33,700.12,1.44166531]
[1736903478618,1.32330438,701.32,700.12,1.44166531]
[1736903478922,0.26224426,701.31,700.12,1.44166531]
[1736903479217,1.061066,701.32,700.12,1.44166531]
[1736903479521,1.32330881,701.31,700.12,1.44166531]
[1736903479723,1.061066,701.31,700.12,1.44166531]
[1736903480124,0.26224973,701.3,700.12,1.44166531]
[1736903480422,1.061066,701.31,700.12,1.44166531]
[1736903480719,1.061066,701.29,700.12,1.44166531]
[1736903481720,1.061066,701.27,700.12,1.44166531]
[1736903484322,0.28512367,701.45,700.12,1.44166531]
[1736903484323,1.061066,701.26,700.12,1.44166531]
[1736903485225,1.061066,701.23,700.12,1.44166531]
[1736903485823,1.061066,701.24,700.12,1.44166531]
[1736903487928,1.061066,701.26,700.12,1.44166531]
[1736903489129,1.061066,701.3,700.12,1.44166531]
[1736903490027,0.28518872,701.29,700.12,1.44166531]
[1736903490229,1.34625472,701.29,700.12,1.44166531]
[1736903490625,1.34625472,701.29,700.12,1.156]
[1736903490926,0.28519279,701.28,700.12,1.156]
[1736903491829,1.061066,701.27,700.12,1.156]
[1736903492029,0.28520092,701.26,700.12,1.156]